[Event "Late-Titled-Tuesday-Blitz-August-29-2023"]
[Site "Chess.com"]
[Date "2023.08.29"]
[Round "9"]
[White "Jaka_Brilej"]
[Black "ilya2700"]
[Result "1-0"]
[WhiteElo "2507"]
[BlackElo "2134"]
[TimeControl "180+1"]
[EndTime "15:44:08 PDT"]
[Termination "Jaka_Brilej won on time"]

1. d4 {[%clk 0:02:55.4]} 1... d5 {[%clk 0:02:47.2]} 2. Nf3 {[%clk 0:02:54.4]}
2... Nf6 {[%clk 0:02:44.2]} 3. e3 {[%clk 0:02:54.5]} 3... c6 {[%clk 0:02:43.6]}
4. Bd3 {[%clk 0:02:53]} 4... Bg4 {[%clk 0:02:43.5]} 5. O-O {[%clk 0:02:43.1]}
5... Nbd7 {[%clk 0:02:38.3]} 6. Nbd2 {[%clk 0:02:42.2]} 6... e6 {[%clk 0:02:34]}
7. b3 {[%clk 0:02:41.9]} 7... Bd6 {[%clk 0:02:31.6]} 8. Bb2 {[%clk 0:02:42]}
8... Bf5 {[%clk 0:02:29.1]} 9. Qe2 {[%clk 0:02:38.2]} 9... Ne4 {[%clk 0:02:24]}
10. c4 {[%clk 0:02:36.3]} 10... O-O {[%clk 0:02:20.7]} 11. Rad1 {[%clk
0:02:25.8]} 11... Qf6 {[%clk 0:02:18.4]} 12. h3 {[%clk 0:02:21.9]} 12... g5
{[%clk 0:02:09.9]} 13. Nh2 {[%clk 0:02:15.5]} 13... Nxd2 {[%clk 0:01:46.8]} 14.
Rxd2 {[%clk 0:02:12.6]} 14... Bxd3 {[%clk 0:01:38.4]} 15. Qxd3 {[%clk
0:02:12.5]} 15... Bxh2+ {[%clk 0:01:09.2]} 16. Kxh2 {[%clk 0:02:12]} 16... Rfe8
{[%clk 0:01:09.9]} 17. f4 {[%clk 0:02:05.5]} 17... g4 {[%clk 0:01:08.3]} 18.
hxg4 {[%clk 0:01:45.6]} 18... Qh4+ {[%clk 0:01:06.9]} 19. Kg1 {[%clk 0:01:46]}
19... Qxg4 {[%clk 0:01:02.6]} 20. Rf3 {[%clk 0:01:42.5]} 20... Nf6 {[%clk
0:00:57.6]} 21. Rh3 {[%clk 0:01:33.4]} 21... Ne4 {[%clk 0:00:43.5]} 22. Rc2
{[%clk 0:01:14.4]} 22... f5 {[%clk 0:00:40.3]} 23. Ba3 {[%clk 0:01:12.2]} 23...
Kh8 {[%clk 0:00:32.9]} 24. Qe2 {[%clk 0:00:58.9]} 24... Rg8 {[%clk 0:00:26.3]}
25. Qxg4 {[%clk 0:00:59]} 25... Rxg4 {[%clk 0:00:24.1]} 26. Kh2 {[%clk
0:00:53.7]} 26... Kg7 {[%clk 0:00:16.2]} 27. Bb4 {[%clk 0:00:30.9]} 27... Rg8
{[%clk 0:00:14.4]} 28. Be1 {[%clk 0:00:29.9]} 28... Kg6 {[%clk 0:00:14.7]} 29.
Re2 {[%clk 0:00:24.8]} 29... h5 {[%clk 0:00:15.1]} 30. Rc2 {[%clk 0:00:24.1]}
30... Kh6 {[%clk 0:00:15.3]} 31. Bh4 {[%clk 0:00:24]} 31... Nd6 {[%clk
0:00:12.5]} 32. Bg5+ {[%clk 0:00:22]} 32... Kg6 {[%clk 0:00:13]} 33. Rg3 {[%clk
0:00:21.3]} 33... Rxg3 {[%clk 0:00:11.3]} 34. Kxg3 {[%clk 0:00:20.6]} 34... Ne4+
{[%clk 0:00:12.2]} 35. Kh4 {[%clk 0:00:21]} 35... Rd8 {[%clk 0:00:10.3]} 36. c5
{[%clk 0:00:20]} 36... Re8 {[%clk 0:00:09.3]} 37. b4 {[%clk 0:00:20.2]} 37...
Rb8 {[%clk 0:00:09]} 38. Rb2 {[%clk 0:00:20.5]} 38... b6 {[%clk 0:00:09.2]} 39.
Be7 {[%clk 0:00:19.7]} 39... bxc5 {[%clk 0:00:09]} 40. dxc5 {[%clk 0:00:20.6]}
40... Re8 {[%clk 0:00:07.9]} 41. Bg5 {[%clk 0:00:20.3]} 41... Rb8 {[%clk
0:00:07.3]} 42. a4 {[%clk 0:00:20.3]} 42... Nxc5 {[%clk 0:00:07.2]} 43. Rc2
{[%clk 0:00:19.1]} 43... Nxa4 {[%clk 0:00:06.2]} 44. Rxc6 {[%clk 0:00:19.1]}
44... Rxb4 {[%clk 0:00:06.7]} 45. Rxe6+ {[%clk 0:00:19.7]} 45... Kf7 {[%clk
0:00:07]} 46. Rf6+ {[%clk 0:00:20.1]} 46... Kg7 {[%clk 0:00:06.2]} 47. Rxf5
{[%clk 0:00:20.4]} 47... Rb1 {[%clk 0:00:05]} 48. Rxd5 {[%clk 0:00:19.1]} 48...
Rh1+ {[%clk 0:00:04.9]} 49. Kg3 {[%clk 0:00:19.4]} 49... Nc3 {[%clk 0:00:05.8]}
50. Rd7+ {[%clk 0:00:17.1]} 50... Kg6 {[%clk 0:00:06.4]} 51. Rd6+ {[%clk
0:00:16.9]} 51... Kf5 {[%clk 0:00:06.7]} 52. Rf6+ {[%clk 0:00:16]} 52... Ke4
{[%clk 0:00:07.1]} 53. Re6+ {[%clk 0:00:16.4]} 53... Kd5 {[%clk 0:00:07.2]} 54.
Re5+ {[%clk 0:00:16.1]} 54... Kd6 {[%clk 0:00:07.7]} 55. Be7+ {[%clk 0:00:15.7]}
55... Kd7 {[%clk 0:00:08.1]} 56. f5 {[%clk 0:00:16.1]} 56... Ne2+ {[%clk
0:00:06]} 57. Kf2 {[%clk 0:00:15.7]} 57... Nc3 {[%clk 0:00:06.4]} 58. f6 {[%clk
0:00:16]} 58... Nd1+ {[%clk 0:00:04.3]} 59. Kg3 {[%clk 0:00:15.6]} 59... Rf1
{[%clk 0:00:04.2]} 60. e4 {[%clk 0:00:14.6]} 60... Ne3 {[%clk 0:00:04]} 61. Kh4
{[%clk 0:00:14.8]} 61... Nxg2+ {[%clk 0:00:02.5]} 62. Kxh5 {[%clk 0:00:14.4]}
62... Nf4+ {[%clk 0:00:03.1]} 63. Kh6 {[%clk 0:00:14.9]} 63... Rh1+ {[%clk
0:00:02.8]} 64. Kg7 {[%clk 0:00:14.9]} 64... Ne6+ {[%clk 0:00:03.3]} 65. Kf7
{[%clk 0:00:14.4]} 65... Rh7+ {[%clk 0:00:03.6]} 66. Kg6 {[%clk 0:00:14.3]}
66... Rh1 {[%clk 0:00:03.7]} 67. Rd5+ {[%clk 0:00:14.6]} 67... Ke8 {[%clk
0:00:02.8]} 68. Bb4 {[%clk 0:00:14.4]} 68... Nf4+ {[%clk 0:00:02]} 69. Kg7
{[%clk 0:00:14.5]} 69... Nxd5 {[%clk 0:00:02.9]} 70. f7+ {[%clk 0:00:14.5]}
70... Kd7 {[%clk 0:00:02.6]} 71. f8=Q {[%clk 0:00:15]} 71... Rg1+ {[%clk
0:00:03]} 72. Kh6 {[%clk 0:00:15.2]} 72... Rh1+ {[%clk 0:00:03.4]} 73. Kg5
{[%clk 0:00:15.7]} 73... Rg1+ {[%clk 0:00:03.6]} 74. Kh4 {[%clk 0:00:16.1]}
74... Nf4 {[%clk 0:00:02.5]} 75. Qxf4 {[%clk 0:00:14.9]} 75... Rh1+ {[%clk
0:00:02.5]} 76. Kg3 {[%clk 0:00:15.2]} 1-0

[Event "Late-Titled-Tuesday-Blitz-August-29-2023"]
[Site "Chess.com"]
[Date "2023.08.29"]
[Round "9"]
[White "FaustinoOro"]
[Black "burbur555"]
[Result "1/2-1/2"]
[WhiteElo "2869"]
[BlackElo "2597"]
[TimeControl "180+1"]
[EndTime "15:44:30 PDT"]
[Termination "Game drawn by repetition"]

1. e4 {[%clk 0:03:00.9]} 1... d5 {[%clk 0:02:54.9]} 2. exd5 {[%clk 0:02:59.5]}
2... Qxd5 {[%clk 0:02:54.5]} 3. Nc3 {[%clk 0:03:00]} 3... Qd6 {[%clk 0:02:53.9]}
4. d4 {[%clk 0:02:59.3]} 4... c6 {[%clk 0:02:53.9]} 5. Nf3 {[%clk 0:02:57.7]}
5... Nf6 {[%clk 0:02:53.6]} 6. Bc4 {[%clk 0:02:56.9]} 6... Be6 {[%clk
0:02:52.5]} 7. Bd3 {[%clk 0:02:45.8]} 7... Nbd7 {[%clk 0:02:49.7]} 8. O-O {[%clk
0:02:45.1]} 8... g6 {[%clk 0:02:48.9]} 9. h3 {[%clk 0:02:41.9]} 9... Bg7 {[%clk
0:02:47.7]} 10. Ng5 {[%clk 0:02:39.6]} 10... Bd5 {[%clk 0:02:45.4]} 11. Nxd5
{[%clk 0:02:34.5]} 11... cxd5 {[%clk 0:02:44.4]} 12. Re1 {[%clk 0:02:34.2]}
12... O-O {[%clk 0:02:43.3]} 13. Nf3 {[%clk 0:02:33.2]} 13... e6 {[%clk
0:02:37.9]} 14. c3 {[%clk 0:02:31.5]} 14... Qc7 {[%clk 0:02:35.7]} 15. Bg5
{[%clk 0:02:30.1]} 15... Qc6 {[%clk 0:02:30.3]} 16. Qe2 {[%clk 0:02:25.5]} 16...
a6 {[%clk 0:02:28.2]} 17. a4 {[%clk 0:02:25.6]} 17... Ne8 {[%clk 0:02:16.2]} 18.
Be7 {[%clk 0:02:23]} 18... Nd6 {[%clk 0:02:15.6]} 19. Bxf8 {[%clk 0:02:22.9]}
19... Rxf8 {[%clk 0:02:14.9]} 20. a5 {[%clk 0:02:05.7]} 20... Rc8 {[%clk
0:02:11.7]} 21. Nd2 {[%clk 0:02:03.1]} 21... Bf6 {[%clk 0:02:06]} 22. Nf3 {[%clk
0:01:55.4]} 22... Bd8 {[%clk 0:02:00.3]} 23. Ne5 {[%clk 0:01:51.7]} 23... Nxe5
{[%clk 0:01:59.2]} 24. Qxe5 {[%clk 0:01:52.6]} 24... Bc7 {[%clk 0:01:57.7]} 25.
Qf6 {[%clk 0:01:49.9]} 25... Qd7 {[%clk 0:01:54.3]} 26. h4 {[%clk 0:01:40.8]}
26... Ne8 {[%clk 0:01:49.2]} 27. Qf3 {[%clk 0:01:38.4]} 27... Ng7 {[%clk
0:01:46.6]} 28. g3 {[%clk 0:01:25.1]} 28... Qd8 {[%clk 0:01:38.9]} 29. b4 {[%clk
0:01:24.8]} 29... Bd6 {[%clk 0:01:37.2]} 30. Bf1 {[%clk 0:01:23.7]} 30... Bc7
{[%clk 0:01:27.1]} 31. Qd3 {[%clk 0:01:14.7]} 31... Qd6 {[%clk 0:01:25.6]} 32.
b5 {[%clk 0:01:04.5]} 32... axb5 {[%clk 0:01:23.6]} 33. Qxb5 {[%clk 0:01:04.5]}
33... Nf5 {[%clk 0:01:21.4]} 34. Bg2 {[%clk 0:01:01.2]} 34... Rb8 {[%clk
0:01:19.9]} 35. Reb1 {[%clk 0:00:57.2]} 35... Qd8 {[%clk 0:01:18.7]} 36. a6
{[%clk 0:00:50.6]} 36... bxa6 {[%clk 0:01:16.1]} 37. Qxa6 {[%clk 0:00:51.5]}
37... Rxb1+ {[%clk 0:01:13.4]} 38. Rxb1 {[%clk 0:00:51.6]} 38... Bd6 {[%clk
0:01:10.8]} 39. Qb6 {[%clk 0:00:43.2]} 39... Qf8 {[%clk 0:01:05.1]} 40. Qc6
{[%clk 0:00:40.6]} 40... h5 {[%clk 0:01:01.8]} 41. Rb7 {[%clk 0:00:36.5]} 41...
Qd8 {[%clk 0:00:53.1]} 42. Qd7 {[%clk 0:00:33.9]} 42... Qxd7 {[%clk 0:00:52.7]}
43. Rxd7 {[%clk 0:00:34.8]} 43... Ba3 {[%clk 0:00:51.7]} 44. Bf1 {[%clk
0:00:32]} 44... Bb2 {[%clk 0:00:49.8]} 45. Rc7 {[%clk 0:00:32.1]} 45... Nd6
{[%clk 0:00:48.9]} 46. Bd3 {[%clk 0:00:30.2]} 46... Kf8 {[%clk 0:00:47.8]} 47.
Kf1 {[%clk 0:00:30.1]} 47... Ne8 {[%clk 0:00:46.1]} 48. Rc8 {[%clk 0:00:23.2]}
48... Ke7 {[%clk 0:00:45.6]} 49. Ke2 {[%clk 0:00:22.4]} 49... Nd6 {[%clk
0:00:45.2]} 50. Rc5 {[%clk 0:00:20.9]} 50... Ne8 {[%clk 0:00:40.4]} 51. Kd2
{[%clk 0:00:19.5]} 51... Ba3 {[%clk 0:00:39.7]} 52. Ra5 {[%clk 0:00:19.5]} 52...
Bd6 {[%clk 0:00:39.3]} 53. Ra7+ {[%clk 0:00:17.4]} 53... Kf8 {[%clk 0:00:38.2]}
54. Kc2 {[%clk 0:00:17]} 54... Nf6 {[%clk 0:00:37.5]} 55. Kd2 {[%clk 0:00:15.2]}
55... Ng4 {[%clk 0:00:36.7]} 56. Ke2 {[%clk 0:00:15.9]} 56... Nf6 {[%clk
0:00:36.1]} 57. c4 {[%clk 0:00:14.7]} 57... dxc4 {[%clk 0:00:35.3]} 58. Bxc4
{[%clk 0:00:15.6]} 58... Bb4 {[%clk 0:00:34.2]} 59. Rb7 {[%clk 0:00:15]} 59...
Bc3 {[%clk 0:00:33.2]} 60. Kd3 {[%clk 0:00:15]} 60... Be1 {[%clk 0:00:32.5]} 61.
Ke2 {[%clk 0:00:15.5]} 61... Bc3 {[%clk 0:00:32.3]} 62. Ke3 {[%clk 0:00:12.8]}
62... Ng4+ {[%clk 0:00:30.8]} 63. Kd3 {[%clk 0:00:10.3]} 63... Be1 {[%clk
0:00:29.9]} 64. f3 {[%clk 0:00:08.8]} 64... Nf6 {[%clk 0:00:28.7]} 65. g4 {[%clk
0:00:03.7]} 65... hxg4 {[%clk 0:00:27.9]} 66. fxg4 {[%clk 0:00:04.6]} 66... Bxh4
{[%clk 0:00:26.8]} 67. Rb8+ {[%clk 0:00:03.7]} 67... Kg7 {[%clk 0:00:26.2]} 68.
Rb7 {[%clk 0:00:04]} 68... Kf8 {[%clk 0:00:26.4]} 69. Bb5 {[%clk 0:00:04.5]}
69... Nxg4 {[%clk 0:00:25.3]} 70. Bc6 {[%clk 0:00:05.1]} 70... Nf6 {[%clk
0:00:24.9]} 71. Bf3 {[%clk 0:00:05.4]} 71... Bg3 {[%clk 0:00:24.1]} 72. Kc4
{[%clk 0:00:06]} 72... Bf4 {[%clk 0:00:23.7]} 73. Kc5 {[%clk 0:00:05.3]} 73...
g5 {[%clk 0:00:23.7]} 74. Kc6 {[%clk 0:00:05.4]} 74... g4 {[%clk 0:00:23]} 75.
Bg2 {[%clk 0:00:06.1]} 75... Kg7 {[%clk 0:00:22.9]} 76. Rb1 {[%clk 0:00:05.5]}
76... Be3 {[%clk 0:00:21.7]} 77. d5 {[%clk 0:00:04.9]} 77... exd5 {[%clk
0:00:20.9]} 78. Bxd5 {[%clk 0:00:05.8]} 78... Nxd5 {[%clk 0:00:20.9]} 79. Kxd5
{[%clk 0:00:06.4]} 79... Kg6 {[%clk 0:00:20.2]} 80. Ke4 {[%clk 0:00:06.4]} 80...
Bf2 {[%clk 0:00:18.3]} 81. Kf4 {[%clk 0:00:06]} 81... g3 {[%clk 0:00:18.5]} 82.
Kf3 {[%clk 0:00:06.6]} 82... f5 {[%clk 0:00:18.9]} 83. Rb8 {[%clk 0:00:05.5]}
83... Kg5 {[%clk 0:00:18.8]} 84. Rg8+ {[%clk 0:00:04.7]} 84... Kf6 {[%clk
0:00:18.8]} 85. Rf8+ {[%clk 0:00:04.3]} 85... Kg6 {[%clk 0:00:19.1]} 86. Rg8+
{[%clk 0:00:04.8]} 86... Kf6 {[%clk 0:00:19.4]} 87. Rf8+ {[%clk 0:00:04.9]}
87... Ke5 {[%clk 0:00:19.6]} 88. Re8+ {[%clk 0:00:05.1]} 88... Kf6 {[%clk
0:00:19.8]} 89. Rf8+ {[%clk 0:00:05.2]} 1/2-1/2

[Event "Late-Titled-Tuesday-Blitz-August-29-2023"]
[Site "Chess.com"]
[Date "2023.08.29"]
[Round "10"]
[White "TreinadorBR"]
[Black "ferrufino64"]
[Result "1-0"]
[WhiteElo "2315"]
[BlackElo "2133"]
[TimeControl "180+1"]
[EndTime "15:47:36 PDT"]
[Termination "TreinadorBR won by resignation"]

1. e4 {[%clk 0:02:56]} 1... e5 {[%clk 0:02:58.9]} 2. Nf3 {[%clk 0:02:56.4]} 2...
Nc6 {[%clk 0:02:59]} 3. Bc4 {[%clk 0:02:56.9]} 3... Bc5 {[%clk 0:02:58.5]} 4. b4
{[%clk 0:02:55.8]} 4... Bxb4 {[%clk 0:02:54.1]} 5. c3 {[%clk 0:02:56.5]} 5...
Ba5 {[%clk 0:02:53.9]} 6. d4 {[%clk 0:02:57.1]} 6... exd4 {[%clk 0:02:42.9]} 7.
O-O {[%clk 0:02:57.5]} 7... Nge7 {[%clk 0:02:42.6]} 8. Ng5 {[%clk 0:02:57.3]}
8... O-O {[%clk 0:02:42.3]} 9. Qh5 {[%clk 0:02:57.7]} 9... h6 {[%clk 0:02:40.7]}
10. Nxf7 {[%clk 0:02:57.4]} 10... Rxf7 {[%clk 0:02:37.9]} 11. Bxf7+ {[%clk
0:02:58.3]} 11... Kh8 {[%clk 0:02:38.1]} 12. Bxh6 {[%clk 0:02:57.1]} 12... g6
{[%clk 0:02:36.3]} 13. Bxg6 {[%clk 0:02:24.9]} 13... Nxg6 {[%clk 0:02:35.2]} 14.
Bg5+ {[%clk 0:02:21.9]} 14... Kg8 {[%clk 0:02:34.8]} 15. Qxg6+ {[%clk
0:02:21.4]} 1-0

[Event "Late-Titled-Tuesday-Blitz-August-29-2023"]
[Site "Chess.com"]
[Date "2023.08.29"]
[Round "10"]
[White "Quattroporte300"]
[Black "Mesa_1"]
[Result "0-1"]
[WhiteElo "2399"]
[BlackElo "2544"]
[TimeControl "180+1"]
[EndTime "15:48:39 PDT"]
[Termination "Mesa_1 won by resignation"]

1. e4 {[%clk 0:02:55.6]} 1... d6 {[%clk 0:02:58.2]} 2. d4 {[%clk 0:02:55.2]}
2... Nf6 {[%clk 0:02:58.9]} 3. Nc3 {[%clk 0:02:55.2]} 3... Nc6 {[%clk
0:02:59.6]} 4. Nf3 {[%clk 0:02:55]} 4... g6 {[%clk 0:02:59]} 5. Be2 {[%clk
0:02:51.4]} 5... Bg7 {[%clk 0:02:59.1]} 6. O-O {[%clk 0:02:51.8]} 6... O-O
{[%clk 0:02:59.8]} 7. h3 {[%clk 0:02:52.3]} 7... a6 {[%clk 0:02:59]} 8. Be3
{[%clk 0:02:52.7]} 8... b5 {[%clk 0:02:53.3]} 9. a3 {[%clk 0:02:41.1]} 9... Bb7
{[%clk 0:02:46.9]} 10. Qd2 {[%clk 0:02:41.4]} 10... e5 {[%clk 0:02:45.8]} 11. d5
{[%clk 0:02:41]} 11... Ne7 {[%clk 0:02:42.3]} 12. a4 {[%clk 0:02:29.9]} 12... b4
{[%clk 0:02:41.8]} 13. Na2 {[%clk 0:02:28.8]} 13... Nxe4 {[%clk 0:02:42.1]} 14.
Qd3 {[%clk 0:02:26.4]} 14... Nf6 {[%clk 0:02:36.4]} 15. Nxb4 {[%clk 0:02:25.7]}
15... e4 {[%clk 0:02:36.6]} 16. Qb3 {[%clk 0:02:25.2]} 16... exf3 {[%clk
0:02:35.7]} 17. Bxf3 {[%clk 0:02:25]} 17... Rb8 {[%clk 0:02:36.3]} 18. Qd3
{[%clk 0:02:24]} 18... a5 {[%clk 0:02:31]} 19. Nc6 {[%clk 0:02:21.4]} 19... Bxc6
{[%clk 0:02:30]} 20. dxc6 {[%clk 0:02:22.3]} 20... Rxb2 {[%clk 0:02:23.6]} 21.
Bd4 {[%clk 0:02:21.9]} 21... Rb8 {[%clk 0:02:21.4]} 22. Qc3 {[%clk 0:02:19.7]}
22... Nfd5 {[%clk 0:02:15.4]} 23. Bxd5 {[%clk 0:02:15.1]} 23... Nxd5 {[%clk
0:02:16.3]} 24. Qxa5 {[%clk 0:02:15.1]} 24... Bxd4 {[%clk 0:02:09.1]} 25. Qxd5
{[%clk 0:02:15.4]} 25... Bxa1 {[%clk 0:02:08.7]} 26. Rxa1 {[%clk 0:02:16]} 26...
Qf6 {[%clk 0:02:07.6]} 0-1

[Event "Late-Titled-Tuesday-Blitz-August-29-2023"]
[Site "Chess.com"]
[Date "2023.08.29"]
[Round "10"]
[White "Der_Honigdachs"]
[Black "Ajedrez_con_German"]
[Result "1-0"]
[WhiteElo "2536"]
[BlackElo "2641"]
[TimeControl "180+1"]
[EndTime "15:48:55 PDT"]
[Termination "Der_Honigdachs won by resignation"]

1. e4 {[%clk 0:03:00]} 1... e6 {[%clk 0:02:59.9]} 2. d4 {[%clk 0:02:59.6]} 2...
d5 {[%clk 0:03:00.2]} 3. Nd2 {[%clk 0:02:58.9]} 3... dxe4 {[%clk 0:03:01.1]} 4.
Nxe4 {[%clk 0:02:59.1]} 4... Nd7 {[%clk 0:03:02]} 5. Nf3 {[%clk 0:02:59]} 5...
Ngf6 {[%clk 0:03:02.6]} 6. Nxf6+ {[%clk 0:02:58.4]} 6... Nxf6 {[%clk 0:03:03]}
7. Be3 {[%clk 0:02:58.5]} 7... Bd6 {[%clk 0:03:01.9]} 8. Bb5+ {[%clk 0:02:56.7]}
8... Bd7 {[%clk 0:03:01.8]} 9. a4 {[%clk 0:02:52.7]} 9... O-O {[%clk 0:02:58]}
10. Qe2 {[%clk 0:02:51.5]} 10... a6 {[%clk 0:02:53.7]} 11. Bd3 {[%clk
0:02:51.6]} 11... Bc6 {[%clk 0:02:52.9]} 12. O-O {[%clk 0:02:50.3]} 12... Bxf3
{[%clk 0:02:51.3]} 13. Qxf3 {[%clk 0:02:50.3]} 13... c6 {[%clk 0:02:52.2]} 14.
c3 {[%clk 0:02:46.7]} 14... Nd5 {[%clk 0:02:47.7]} 15. Bd2 {[%clk 0:02:45.9]}
15... Qf6 {[%clk 0:02:42.9]} 16. Qe4 {[%clk 0:02:43.9]} 16... g6 {[%clk
0:02:42.5]} 17. g3 {[%clk 0:02:43.7]} 17... a5 {[%clk 0:02:37.2]} 18. Rae1
{[%clk 0:02:40.9]} 18... Rfe8 {[%clk 0:02:35.8]} 19. Bb1 {[%clk 0:02:36.8]}
19... Bf8 {[%clk 0:02:32.4]} 20. h4 {[%clk 0:02:36.1]} 20... Bg7 {[%clk
0:02:21.2]} 21. Bg5 {[%clk 0:02:31.6]} 21... Qf5 {[%clk 0:02:21.7]} 22. Qg2
{[%clk 0:02:16.3]} 22... Qg4 {[%clk 0:02:06.5]} 23. f3 {[%clk 0:02:15.7]} 23...
Bxd4+ {[%clk 0:02:06.6]} 24. Kh2 {[%clk 0:02:07.8]} 24... Qh5 {[%clk 0:02:00.2]}
25. g4 {[%clk 0:02:07.2]} 1-0

[Event "Late-Titled-Tuesday-Blitz-August-29-2023"]
[Site "Chess.com"]
[Date "2023.08.29"]
[Round "10"]
[White "SchmakAttack"]
[Black "DishonorOnYourCow"]
[Result "1-0"]
[WhiteElo "2778"]
[BlackElo "2559"]
[TimeControl "180+1"]
[EndTime "15:49:52 PDT"]
[Termination "SchmakAttack won by resignation"]

1. Nf3 {[%clk 0:03:00.9]} 1... d5 {[%clk 0:02:59.4]} 2. b3 {[%clk 0:02:57]} 2...
Nf6 {[%clk 0:02:58.6]} 3. Bb2 {[%clk 0:02:56.9]} 3... g6 {[%clk 0:02:58.8]} 4.
e3 {[%clk 0:02:53.8]} 4... Bg7 {[%clk 0:02:58.8]} 5. Be2 {[%clk 0:02:53.5]} 5...
O-O {[%clk 0:02:58.7]} 6. O-O {[%clk 0:02:54]} 6... c5 {[%clk 0:02:59]} 7. d3
{[%clk 0:02:47.9]} 7... Nc6 {[%clk 0:02:58.7]} 8. Ne5 {[%clk 0:02:48]} 8... Qc7
{[%clk 0:02:55.6]} 9. Nxc6 {[%clk 0:02:46.8]} 9... Ng4 {[%clk 0:02:38.3]} 10.
Nxe7+ {[%clk 0:02:39.1]} 10... Qxe7 {[%clk 0:02:34.8]} 11. Bxg7 {[%clk
0:02:36.7]} 11... Qh4 {[%clk 0:01:53.8]} 12. Bxg4 {[%clk 0:02:09.1]} 12... Bxg4
{[%clk 0:01:53.5]} 13. f3 {[%clk 0:02:02.9]} 13... Kxg7 {[%clk 0:01:47.6]} 14.
fxg4 {[%clk 0:02:03]} 14... Rae8 {[%clk 0:01:46.9]} 15. Nc3 {[%clk 0:01:49.5]}
15... Qg5 {[%clk 0:01:41.2]} 16. e4 {[%clk 0:01:46.2]} 16... d4 {[%clk
0:01:18.9]} 17. Nd5 {[%clk 0:01:45.5]} 17... f5 {[%clk 0:01:19]} 18. gxf5 {[%clk
0:01:43]} 18... gxf5 {[%clk 0:01:18.6]} 19. Rf3 {[%clk 0:01:42.7]} 19... Kh8
{[%clk 0:01:14]} 20. Qf1 {[%clk 0:01:41.9]} 1-0

[Event "Late-Titled-Tuesday-Blitz-August-29-2023"]
[Site "Chess.com"]
[Date "2023.08.29"]
[Round "10"]
[White "DawidCzerw"]
[Black "WildBizon"]
[Result "0-1"]
[WhiteElo "2513"]
[BlackElo "2728"]
[TimeControl "180+1"]
[EndTime "15:50:22 PDT"]
[Termination "WildBizon won by resignation"]

1. d4 {[%clk 0:03:00.9]} 1... Nf6 {[%clk 0:02:55.6]} 2. c4 {[%clk 0:03:01.3]}
2... b6 {[%clk 0:02:55.5]} 3. f3 {[%clk 0:03:00.8]} 3... Nc6 {[%clk 0:02:54.6]}
4. e4 {[%clk 0:03:00.8]} 4... e5 {[%clk 0:02:54.7]} 5. Ne2 {[%clk 0:03:00.6]}
5... exd4 {[%clk 0:02:52.8]} 6. Nxd4 {[%clk 0:03:00.9]} 6... Bb4+ {[%clk
0:02:52.1]} 7. Bd2 {[%clk 0:02:57.7]} 7... Nxe4 {[%clk 0:02:43.6]} 8. Nxc6
{[%clk 0:02:52.2]} 8... Qh4+ {[%clk 0:02:38.9]} 9. g3 {[%clk 0:02:51.2]} 9...
Nxg3 {[%clk 0:02:36.1]} 10. Nxb4 {[%clk 0:01:34.3]} 10... Nxh1+ {[%clk
0:02:23.4]} 11. Ke2 {[%clk 0:01:33.7]} 11... Qxh2+ {[%clk 0:02:20.6]} 12. Ke3
{[%clk 0:01:31.4]} 12... Qe5+ {[%clk 0:02:17.4]} 13. Kd3 {[%clk 0:01:22.4]}
13... Nf2+ {[%clk 0:02:17.5]} 14. Kc2 {[%clk 0:01:19.1]} 14... Nxd1 {[%clk
0:02:16]} 15. Kxd1 {[%clk 0:01:19.4]} 15... Qxb2 {[%clk 0:02:12.4]} 16. Bc3
{[%clk 0:01:19.5]} 16... Qf2 {[%clk 0:02:12.2]} 17. Nd2 {[%clk 0:01:17]} 17...
O-O {[%clk 0:02:07.8]} 18. Bd3 {[%clk 0:01:13.8]} 18... Re8 {[%clk 0:02:00]} 19.
Kc2 {[%clk 0:00:59.3]} 19... Re1 {[%clk 0:01:56]} 20. Bxh7+ {[%clk 0:00:50.3]}
20... Kxh7 {[%clk 0:01:50.3]} 21. Nd3 {[%clk 0:00:50.6]} 21... Rxa1 {[%clk
0:01:46.4]} 22. Nxf2 {[%clk 0:00:50.6]} 22... Rxa2+ {[%clk 0:01:46.9]} 23. Kb3
{[%clk 0:00:48.8]} 23... Rxd2 {[%clk 0:01:47.1]} 24. Bxd2 {[%clk 0:00:48.7]}
24... Bb7 {[%clk 0:01:48]} 0-1

[Event "Late-Titled-Tuesday-Blitz-August-29-2023"]
[Site "Chess.com"]
[Date "2023.08.29"]
[Round "10"]
[White "Roedor"]
[Black "egnfanclub"]
[Result "1-0"]
[WhiteElo "2436"]
[BlackElo "2312"]
[TimeControl "180+1"]
[EndTime "15:50:25 PDT"]
[Termination "Roedor won by resignation"]

1. d4 {[%clk 0:02:57.5]} 1... d5 {[%clk 0:02:58.1]} 2. c4 {[%clk 0:02:57.5]}
2... c6 {[%clk 0:02:57.9]} 3. Nf3 {[%clk 0:02:57.4]} 3... Nf6 {[%clk 0:02:58.2]}
4. e3 {[%clk 0:02:57.3]} 4... e6 {[%clk 0:02:58.3]} 5. b3 {[%clk 0:02:56.4]}
5... Nbd7 {[%clk 0:02:57.9]} 6. Bd3 {[%clk 0:02:56]} 6... Bb4+ {[%clk
0:02:53.7]} 7. Nbd2 {[%clk 0:02:55.5]} 7... Ne4 {[%clk 0:02:51.1]} 8. O-O {[%clk
0:02:55]} 8... Nxd2 {[%clk 0:02:27.3]} 9. Bxd2 {[%clk 0:02:55.9]} 9... Bxd2
{[%clk 0:02:27.4]} 10. Qxd2 {[%clk 0:02:56.5]} 10... Nf6 {[%clk 0:02:28.3]} 11.
b4 {[%clk 0:02:51.5]} 11... dxc4 {[%clk 0:02:26.3]} 12. Bxc4 {[%clk 0:02:51.6]}
12... O-O {[%clk 0:02:26.9]} 13. Ne5 {[%clk 0:02:45.8]} 13... Nd7 {[%clk
0:02:24.2]} 14. Nd3 {[%clk 0:02:45.7]} 14... Qe7 {[%clk 0:02:20.2]} 15. Rfc1
{[%clk 0:02:42.8]} 15... e5 {[%clk 0:02:19.3]} 16. d5 {[%clk 0:02:41.7]} 16...
cxd5 {[%clk 0:02:13.5]} 17. Bxd5 {[%clk 0:02:41.6]} 17... Nf6 {[%clk 0:02:11.6]}
18. Bb3 {[%clk 0:02:40.4]} 18... Rd8 {[%clk 0:02:06.2]} 19. Qc3 {[%clk
0:02:37.7]} 19... e4 {[%clk 0:01:46]} 20. Nf4 {[%clk 0:02:35.2]} 20... Bf5
{[%clk 0:01:30.6]} 21. b5 {[%clk 0:02:27.5]} 21... Rac8 {[%clk 0:01:28.1]} 22.
Qa5 {[%clk 0:02:27.7]} 22... b6 {[%clk 0:01:26.9]} 23. Qe1 {[%clk 0:02:20]}
23... g5 {[%clk 0:01:20.8]} 24. Rxc8 {[%clk 0:02:12.1]} 24... Bxc8 {[%clk
0:01:09.8]} 25. Ne2 {[%clk 0:02:10.6]} 25... Be6 {[%clk 0:00:53.1]} 26. Nd4
{[%clk 0:02:09]} 26... Bxb3 {[%clk 0:00:45.3]} 27. axb3 {[%clk 0:02:09.9]} 27...
Nd5 {[%clk 0:00:39]} 28. Nc6 {[%clk 0:02:08]} 1-0